bitfinex/quotes_SOLUSD_20260310
["timestamp","ask_amount","ask_price","bid_price","bid_amount"]
[1773175990956,1.58064751,86.268,86.25,4.13216523]
[1773175991456,1.58064751,86.276,86.26,4.13216523]
[1773175992853,1.58064751,86.276,86.251,11.59406847]
[1773175992854,11.59084323,86.275,86.242,11.5952784]
[1773175993156,1.58064751,86.274,86.242,11.5952784]
[1773175993857,1.58064751,86.274,86.25,4.13216523]
[1773175995058,1.58064751,86.274,86.251,11.59406847]
[1773175998653,1.58064751,86.278,86.26,4.13216523]
[1773175999945,11.59057454,86.277,86.26,4.13216523]
[1773176000239,13.17122205,86.277,86.26,4.13216523]
[1773176000438,11.59057454,86.277,86.26,4.13216523]
[1773176000659,1.58064751,86.276,86.26,4.13216523]
[1773176000860,1.58064751,86.276,86.26,4.15366958]
[1773176001061,1.58064751,86.276,86.26,4.13216523]
[1773176002164,1.58064751,86.274,86.26,4.13216523]
[1773176002361,1.58064751,86.274,86.251,11.59406847]
[1773176002668,1.58064751,86.274,86.252,0.02237734]
[1773176003661,1.58064751,86.281,86.261,0.02324031]
[1773176004051,1.58064751,86.281,86.261,11.61596471]
[1773176004853,1.58064751,86.281,86.261,11.5927244]
[1773176005262,1.58064751,86.281,86.261,11.61766101]
[1773176011673,1.58064751,86.279,86.25,4.12811387]
[1773176011864,1.58064751,86.279,86.261,0.03057434]
[1773176012758,11.59017153,86.28,86.261,0.03057434]
[1773176012974,1.58064751,86.279,86.261,11.62329874]
[1773176015277,1.58064751,86.279,86.261,11.5927244]
[1773176019673,11.5904402,86.278,86.261,11.5927244]
[1773176019876,1.58064751,86.277,86.261,11.5927244]
[1773176023393,1.58064751,86.277,86.262,0.03856196]
[1773176023689,1.58064751,86.281,86.262,0.03856196]
[1773176028293,1.58064751,86.269,86.241,1.15954128]
[1773176028472,1.58064751,86.269,86.231,0.04250949]
[1773176028667,1.58064751,86.269,86.241,0.04250949]
[1773176029885,1.58064751,86.267,86.241,0.04250949]
[1773176031382,1.58064751,86.267,86.24,4.12811387]
[1773176031578,1.58064751,86.267,86.23,4.12811387]
[1773176032387,1.58064751,86.265,86.23,15.72492651]
[1773176032587,1.58064751,86.265,86.24,4.12811387]
[1773176035192,1.58064751,86.263,86.24,4.12811387]
[1773176037181,1.58064751,86.261,86.24,4.12811387]
[1773176037382,1.58064751,86.261,86.24,4.17662391]
[1773176039301,1.58064751,86.261,86.241,0.04962918]
[1773176039600,1.58064751,86.259,86.241,0.04962918]
[1773176040887,11.59285879,86.26,86.241,0.04962918]
[1773176041087,1.58064751,86.264,86.241,0.04962918]
[1773176041586,1.58064751,86.264,86.218,0.14216157]
[1773176041587,1.58064751,86.262,86.233,0.05072277]
[1773176041806,1.58064751,86.262,86.24,4.12811387]
[1773176042094,1.58064751,86.262,86.24,4.17937403]
[1773176043888,11.5927244,86.261,86.24,4.17937403]
[1773176044106,1.58064751,86.26,86.24,4.17937403]
[1773176044689,1.58064751,86.26,86.24,4.12811387]
[1773176046989,1.58064751,86.258,86.24,4.12811387]
[1773176048283,1.58064751,86.256,86.238,0.05385592]
[1773176049304,1.58064751,86.256,86.231,0.05485297]
[1773176050403,1.58064751,86.254,86.231,0.05485297]
[1773176051909,1.58064751,86.252,86.231,0.05485297]
[1773176052403,4.12811387,86.25,86.213,1.15991787]
[1773176052605,1.58064751,86.249,86.212,11.59931332]
[1773176052789,1.58064751,86.249,86.213,0.056306]
[1773176053989,1.58064751,86.247,86.213,0.056306]
[1773176055600,1.58064751,86.229,86.193,0.05770953]
[1773176055800,1.58064751,86.229,86.2,4.12811387]
[1773176056194,1.58064751,86.227,86.193,0.05770953]
[1773176056722,1.58064751,86.227,86.19,4.12811387]
[1773176057510,1.58064751,86.219,86.19,4.12811387]
[1773176058105,1.58064751,86.217,86.19,4.12811387]
[1773176058712,1.58064751,86.217,86.191,0.05906526]
[1773176059807,1.58064751,86.217,86.19,4.12811387]
[1773176060616,1.58064751,86.215,86.181,0.0603748]
[1773176060805,1.58064751,86.209,86.181,0.0603748]
[1773176061506,1.58064751,86.209,86.191,0.06080133]
[1773176062701,11.59985152,86.208,86.191,0.06080133]
[1773176063415,1.58064751,86.225,86.192,0.06163974]
[1773176064121,1.58064751,86.219,86.192,0.06163974]
[1773176064695,1.58064751,86.217,86.192,0.06163974]
[1773176065602,1.58064751,86.217,86.182,0.062459]
[1773176066210,1.58064751,86.217,86.183,11.60315317]
[1773176066409,1.58064751,86.217,86.184,0.06286159]
[1773176067809,1.58064751,86.209,86.184,0.06286159]
[1773176068011,1.58064751,86.209,86.185,0.06365295]
[1773176068815,1.58064751,86.209,86.17,4.12811387]
[1773176069110,1.58064751,86.209,86.18,4.12811387]
[1773176069617,1.58064751,86.209,86.181,0.06404182]
[1773176070206,1.58064751,86.209,86.191,0.06442623]
[1773176070513,1.58064751,86.225,86.191,0.06442623]
[1773176071714,1.58064751,86.219,86.191,0.06442623]
[1773176072102,1.58064751,86.209,86.17,4.13513168]
[1773176072421,1.58064751,86.199,86.171,11.60483225]
[1773176072914,1.58064751,86.199,86.167,11.67052577]
[1773176073511,40.59948032,86.208,86.181,0.06555316]
[1773176073512,1.58064751,86.204,86.181,0.06555316]
[1773176075004,11.59985152,86.208,86.182,0.06628304]
[1773176075200,1.58064751,86.212,86.182,0.06628304]
[1773176075397,1.58064751,86.229,86.201,0.06628304]
[1773176076805,1.58064751,86.229,86.2,4.13513168]
[1773176077006,1.58064751,86.229,86.196,0.0666417]
[1773176078122,1.58064751,86.227,86.2,4.13513168]
[1773176078718,1.58064751,86.227,86.196,0.0666417]
[1773176079324,1.58064751,86.227,86.2,4.13513168]
[1773176079917,1.58064751,86.225,86.2,4.13513168]
[1773176083122,1.58064751,86.223,86.2,4.13513168]
[1773176085629,1.58064751,86.221,86.196,0.0666417]
[1773176090132,1.58064751,86.219,86.2,4.20698266]
[1773176092014,11.59850611,86.218,86.2,4.20698266]
[1773176092221,1.58064751,86.217,86.2,4.20698266]
[1773176097925,1.58064751,86.217,86.2,0.07185098]
[1773176101543,1.58064751,86.24,86.211,0.07491289]
[1773176101734,1.58064751,86.24,86.221,0.07491289]
[1773176102347,1.58064751,86.24,86.217,0.07517244]
[1773176102547,1.58064751,86.239,86.217,0.07517244]
[1773176106139,11.59581622,86.238,86.221,0.07618113]
[1773176106340,1.15962196,86.263,86.211,11.59944786]
[1773176106341,1.58064751,86.259,86.231,0.07618113]
[1773176106535,4.13513168,86.26,86.231,0.07618113]
[1773176106536,1.58064751,86.258,86.231,0.07618113]
[1773176107643,1.58064751,86.256,86.231,11.67293867]
[1773176108449,1.58064751,86.256,86.231,11.59675754]
[1773176108748,1.58064751,86.256,86.232,0.07666827]
[1773176109348,13.1718938,86.272,86.241,0.07690765]
[1773176109551,1.58064751,86.271,86.241,0.07690765]
[1773176109763,1.58064751,86.259,86.22,4.13513168]
[1773176110133,1.58064751,86.259,86.23,4.13513168]
[1773176110954,1.61910133,86.257,86.231,11.59675754]
[1773176113051,1.61910133,86.255,86.231,11.59675754]
[1773176115258,1.61910133,86.255,86.231,11.59675754]
[1773176116052,11.59366522,86.254,86.231,11.59675754]
[1773176116649,1.61910133,86.253,86.231,11.59675754]
[1773176119256,1.61910133,86.251,86.231,11.59675754]
[1773176120061,1.61910133,86.251,86.24,4.13513168]
[1773176123657,1.61910133,86.251,86.23,4.13513168]
[1773176125145,1.61910133,86.251,86.231,11.59675754]
[1773176125439,1.61910133,86.251,86.24,4.13513168]
[1773176125645,11.5928648,86.26,86.24,4.13513168]
[1773176125841,1.61910133,86.259,86.24,4.13513168]
[1773176128066,1.61910133,86.259,86.241,11.59541285]
[1773176130757,1.61910133,86.259,86.24,4.13513168]
[1773176130758,1.61910133,86.257,86.24,4.13513168]
[1773176131365,1.61910133,86.257,86.241,11.59541285]
[1773176133754,1.61910133,86.257,86.24,4.13037388]
[1773176134667,1.61910133,86.257,86.24,15.72587588]
[1773176136277,1.61910133,86.255,86.234,11.59624273]
[1773176136851,1.61910133,86.255,86.23,4.13037388]
[1773176137165,11.5933964,86.256,86.19,1.1602274]
[1773176137166,1.61910133,86.249,86.19,1.1602274]
[1773176137477,1.61910133,86.239,86.21,4.13037388]
[1773176138559,1.61910133,86.237,86.21,4.13037388]
[1773176143063,11.59608516,86.236,86.21,4.13037388]
[1773176143265,1.61910133,86.235,86.21,4.13037388]
[1773176144865,1.61910133,86.235,86.202,11.6005322]
[1773176147486,1.61910133,86.233,86.21,4.13037388]
[1773176155188,1.61910133,86.231,86.179,0.14216157]
[1773176155391,1.61910133,86.231,86.21,4.13037388]
[1773176158281,1.61910133,86.229,86.21,4.13037388]
[1773176158673,1.61910133,86.229,86.187,29.00662113]
[1773176158990,1.61910133,86.229,86.2,4.13037388]
[1773176159190,1.61910133,86.229,86.21,4.13037388]
[1773176160772,1.61910133,86.247,86.22,4.13037388]
[1773176166107,1.61910133,86.245,86.22,4.13037388]
[1773176167583,1.61910133,86.245,86.221,11.59810255]
[1773176170008,1.61910133,86.243,86.221,11.59810255]
[1773176170181,1.61910133,86.243,86.22,4.13037388]
[1773176170387,1.61910133,86.229,86.2,4.13037388]
[1773176170692,1.61910133,86.229,86.201,11.60079349]
[1773176171086,1.61910133,86.229,86.21,4.13037388]
[1773176171489,1.61910133,86.241,86.22,4.13037388]
[1773176171901,1.61910133,86.241,86.21,4.13037388]
[1773176176201,1.61910133,86.239,86.211,11.59944786]
[1773176179088,11.59581622,86.238,86.211,11.59944786]
[1773176179291,1.61910133,86.237,86.211,11.59944786]
[1773176182117,11.59608516,86.236,86.211,11.59944786]
[1773176182414,1.61910133,86.235,86.211,11.59944786]
[1773176183794,11.59608516,86.236,86.22,4.13037388]
[1773176184895,1.61910133,86.256,86.23,4.13037388]
[1773176185796,11.5933964,86.256,86.23,4.13037388]
[1773176186017,1.61910133,86.253,86.23,4.13037388]
[1773176191135,11.59393405,86.252,86.23,4.13037388]
[1773176191425,1.61910133,86.251,86.23,4.13037388]
[1773176194417,1.61910133,86.249,86.23,4.13037388]
[1773176195020,11.59420289,86.25,86.231,11.59675754]
[1773176195405,1.61910133,86.253,86.24,4.13037388]
[1773176195621,1.61910133,86.253,86.24,4.13056273]
[1773176200329,1.61910133,86.253,86.241,11.59541285]
[1773176200713,1.61910133,86.253,86.24,4.13056273]
[1773176207212,1.61910133,86.253,86.23,4.13056273]
[1773176207633,1.61910133,86.253,86.24,4.13056273]
[1773176220250,1.61910133,86.252,86.23,4.13056273]
[1773176220739,1.61910133,86.252,86.24,4.13056273]
[1773176224037,1.61910133,86.25,86.24,4.13056273]
[1773176230456,1.61910133,86.255,86.241,11.59541285]
[1773176230654,1.61910133,86.273,86.241,11.59541285]
[1773176231754,11.59124629,86.272,86.241,11.59541285]
[1773176231961,1.61910133,86.271,86.241,11.59541285]
[1773176233562,1.61910133,86.271,86.25,4.13056273]
[1773176234261,1.61910133,86.269,86.25,4.13056273]
[1773176236354,4.13056273,86.28,86.233,28.99103016]
[1773176236355,1.61910133,86.267,86.24,4.13056273]
[1773176237762,1.61910133,86.267,86.234,11.5963541]
[1773176238055,1.61910133,86.267,86.24,4.13056273]
[1773176238737,11.59205248,86.266,86.24,4.13056273]
[1773176239040,1.61910133,86.265,86.24,4.13056273]
[1773176240157,1.61910133,86.265,86.205,29.00030425]
[1773176240363,1.61910133,86.259,86.22,4.13056273]
[1773176240947,5.29018469,86.26,86.23,4.13056273]
[1773176240948,1.61910133,86.257,86.23,4.13056273]
[1773176247663,1.61910133,86.249,86.22,4.13056273]
[1773176249060,1.61910133,86.249,86.21,4.13056273]
[1773176249266,1.61910133,86.249,86.22,4.13056273]
[1773176254158,1.61910133,86.247,86.221,11.59810255]
[1773176257177,1.61910133,86.245,86.221,11.59810255]
[1773176257865,1.61910133,86.254,86.221,11.59810255]
[1773176258066,1.61910133,86.254,86.23,4.13207787]
[1773176258266,1.61910133,86.254,86.221,11.59810255]
[1773176258861,1.61910133,86.252,86.221,40.59335892]
[1773176265285,1.61910133,86.249,86.22,4.13207787]
[1773176265787,1.61910133,86.239,86.213,11.59917877]
[1773176266786,1.61910133,86.239,86.192,29.0049309]
[1773176267085,1.61910133,86.239,86.2,4.13207787]
[1773176267287,1.61910133,86.237,86.21,4.13207787]
[1773176269001,1.61910133,86.237,86.22,4.13207787]
[1773176269592,1.61910133,86.235,86.22,4.13207787]
[1773176273992,1.61910133,86.233,86.22,4.13207787]
[1773176277298,1.61910133,86.231,86.22,4.13207787]
[1773176278080,1.61910133,86.231,86.212,11.59925073]
[1773176279892,1.61910133,86.229,86.207,11.5998911]
[1773176280587,1.61910133,86.229,86.2,0.5]
[1773176280786,1.61910133,86.219,86.19,4.13207787]
[1773176280992,1.61910133,86.209,86.18,4.13207787]
[1773176281200,1.61910133,86.209,86.19,4.13207787]
[1773176281393,1.61910133,86.231,86.2,4.13207787]
[1773176281900,1.61910133,86.229,86.201,11.60079349]
[1773176284287,1.61910133,86.227,86.201,11.60079349]
[1773176286083,1.61910133,86.227,86.202,0.02002056]
[1773176287308,13.21653133,86.226,86.21,4.13207787]
[1773176288694,1.61910133,86.225,86.21,4.13207787]
[1773176288885,1.61910133,86.225,86.21,4.15215918]
[1773176295199,1.61910133,86.225,86.21,4.13207787]
[1773176295403,1.61910133,86.223,86.201,0.02028319]
[1773176295810,1.61910133,86.223,86.21,4.13207787]
[1773176298898,13.21706936,86.222,86.21,4.13207787]
[1773176299098,1.61910133,86.221,86.21,4.13207787]
[1773176303315,1.61910133,86.219,86.21,4.13207787]
[1773176303520,1.61910133,86.219,86.2,15.73289463]
[1773176303714,1.61910133,86.219,86.21,4.13207787]
[1773176303919,1.61910133,86.219,86.201,0.02051989]
[1773176309820,104.3,86.239,86.211,0.02066456]
[1773176310011,1.61910133,86.241,86.221,0.02068771]
[1773176311998,1.61910133,86.239,86.221,0.02068771]
[1773176314223,1.61910133,86.237,86.221,0.02068771]
[1773176316627,13.21428617,86.243,86.221,0.02068771]
[1773176317130,1.61910133,86.242,86.221,0.02068771]
[1773176317912,1.61910133,86.242,86.222,0.02084249]
[1773176319027,1.61910133,86.24,86.222,0.02084249]
[1773176319222,1.61910133,86.24,86.221,11.59810255]
[1773176319938,1.61910133,86.238,86.221,11.59810255]
[1773176320328,1.61910133,86.238,86.22,4.1317605]
[1773176321128,1.49697837,86.237,86.21,4.1317605]
[1773176321333,1.49697837,86.237,86.204,11.60025716]
[1773176321720,1.49697837,86.237,86.205,0.67273872]
[1773176321938,1.49697837,86.235,86.21,4.80451938]
[1773176322736,1.49697837,86.235,86.211,0.67275888]
[1773176323420,1.49697837,86.235,86.21,4.1317605]
[1773176326138,1.49697837,86.233,86.21,4.1317605]
[1773176326725,1.49697837,86.233,86.21,4.80459771]
[1773176326921,1.49697837,86.233,86.211,0.67283721]
[1773176328621,1.52217401,86.231,86.211,0.67283721]
[1773176328836,1.52217401,86.231,86.212,11.59931332]
[1773176329138,11.59662306,86.232,86.212,11.59931332]
[1773176329139,1.52217401,86.253,86.221,0.67250238]
[1773176329441,1.52217401,86.253,86.23,4.80418156]
[1773176330721,11.59366522,86.254,86.214,0.67234067]
[1773176330722,1.55299168,86.254,86.214,0.67234067]
[1773176330930,1.55299168,86.254,86.202,40.6023062]
[1773176330931,1.55299168,86.254,86.24,4.1317605]
[1773176331149,1.55299168,86.254,86.221,0.67226121]
[1773176331358,1.55299168,86.252,86.221,0.67226121]
[1773176331552,1.55299168,86.252,86.23,4.1317605]
[1773176331749,12.75315276,86.255,86.21,4.1317605]
[1773176331750,1.55299168,86.249,86.21,4.1317605]
[1773176331947,1.55299168,86.247,86.23,4.1317605]
[1773176332260,1.55299168,86.247,86.22,4.1317605]
[1773176332434,1.55299168,86.247,86.23,4.1317605]
[1773176332853,1.55299168,86.247,86.231,11.59675754]
[1773176333557,1.55299168,86.263,86.24,4.80386552]
[1773176334064,1.55299168,86.263,86.24,4.1317605]
[1773176337276,1.55299168,86.261,86.24,4.80356375]
[1773176338477,1.55299168,86.259,86.24,4.80356375]
[1773176339376,1.55299168,86.259,86.233,0.67165752]
[1773176339588,1.55299168,86.259,86.24,4.1317605]
[1773176340570,1.55299168,86.257,86.236,0.67165752]
[1773176340775,1.55299168,86.257,86.24,4.1317605]
[1773176341076,1.55299168,86.257,86.229,11.59693007]
[1773176341277,1.55299168,86.257,86.23,4.1317605]
[1773176341598,1.55299168,86.257,86.23,5.45488499]
[1773176341886,1.55299168,86.257,86.231,1.32305451]
[1773176342491,1.55299168,86.257,86.24,5.45481501]
[1773176343077,1.55299168,86.249,86.22,4.1317605]
[1773176343296,4.1317605,86.25,86.21,5.45474584]
[1773176343297,1.55299168,86.247,86.21,5.45474584]
[1773176343497,1.55299168,86.251,86.231,1.32298534]
[1773176343678,1.55299168,86.275,86.241,1.32298534]
[1773176343878,1.55299168,86.274,86.241,1.32298534]
[1773176348197,1.55299168,86.272,86.241,1.32298534]
[1773176348401,1.55299168,86.272,86.243,1.32185667]
[1773176350479,1.55299168,86.27,86.243,1.32185667]
[1773176352996,1.55299168,86.268,86.243,1.32185667]
[1773176356203,1.55299168,86.266,86.243,1.32185667]
[1773176357888,1.55299168,86.264,86.243,1.32185667]
[1773176362402,1.56320997,86.262,86.243,1.32185667]
[1773176365500,13.15593437,86.261,86.243,1.32185667]
[1773176365808,1.56320997,86.26,86.24,4.1317605]
[1773176366307,1.56320997,86.26,86.241,1.31405015]
[1773176368494,1.56320997,86.258,86.241,1.31405015]
[1773176368694,1.56320997,86.258,86.232,11.59656436]
[1773176368998,1.56320997,86.258,86.233,1.31332372]
[1773176369605,11.59326199,86.257,86.233,1.31332372]
[1773176369804,1.56320997,86.256,86.233,1.31332372]
[1773176370408,1.56320997,86.256,86.235,1.31261389]
[1773176372107,13.15603743,86.261,86.242,1.31192026]
[1773176372289,1.56320997,86.26,86.242,1.31192026]
[1773176373920,1.56320997,86.26,86.241,11.59541285]
[1773176374410,1.56320997,86.26,86.242,1.31124248]
[1773176375110,1.56320997,86.276,86.244,1.31090942]
[1773176376810,1.56320997,86.276,86.244,1.31058018]
[1773176377724,1.56320997,86.274,86.244,1.31058018]
[1773176382924,1.56320997,86.272,86.244,1.31058018]
[1773176385517,1.56320997,86.27,86.245,1.30778211]
[1773176385722,1.56320997,86.27,86.241,1.30778211]
[1773176389636,1.47109664,86.268,86.241,1.30778211]
[1773176391937,11.59191811,86.267,86.241,1.30778211]
[1773176392113,1.47109664,86.266,86.241,1.30778211]
[1773176392313,1.47109664,86.266,86.243,1.30526035]
[1773176394126,1.47109664,86.264,86.242,11.5952784]
[1773176395143,11.59218686,86.265,86.251,1.30447637]
[1773176395342,1.47109664,86.274,86.26,4.12965057]
[1773176395518,1.47109664,86.274,86.257,1.30447637]
[1773176395923,1.47109664,86.274,86.251,1.30422102]
[1773176396337,1.47109664,86.272,86.252,12.89815507]
[1773176396944,1.47109664,86.272,86.253,1.3039686]
[1773176397125,4.22965057,86.29,86.252,11.59393405]
[1773176397126,1.47109664,86.287,86.256,1.3039686]
[1773176397941,1.47109664,86.287,86.252,12.89790265]
[1773176398436,1.47109664,86.285,86.253,1.30371909]
[1773176399253,1.47109664,86.285,86.26,4.12965057]
[1773176399833,1.47109664,86.283,86.26,4.12965057]
[1773176400533,1.47109664,86.283,86.261,1.30322862]
[1773176400931,1.47109664,86.288,86.26,4.12965057]
[1773176401235,1.47109664,86.288,86.243,11.59514395]
[1773176401236,1.47109664,86.279,86.249,1.30298761]
[1773176401440,1.47109664,86.259,86.22,4.12965057]
[1773176401641,4.12965057,86.26,86.221,1.30298761]
[1773176401642,1.47109664,86.249,86.221,1.30298761]
[1773176401840,1.47109664,86.247,86.223,1.30298761]
[1773176402634,1.47109664,86.247,86.223,1.15745898]
[1773176403032,1.47109664,86.252,86.24,4.12965057]
[1773176403455,1.47109664,86.265,86.24,4.12965057]
[1773176404133,1.47109664,86.263,86.24,15.72511729]
[1773176405447,1.47109664,86.263,86.24,4.12965057]
[1773176406748,1.47109664,86.261,86.236,11.59605959]
[1773176407123,1.47109664,86.261,86.24,4.12965057]
[1773176407945,11.59285879,86.26,86.24,4.12965057]
[1773176408147,1.47109664,86.259,86.24,4.12965057]
[1773176409549,1.47109664,86.259,86.23,5.28572049]
[1773176409852,1.47109664,86.259,86.221,1.15584468]
[1773176410087,1.47109664,86.257,86.221,1.15584468]
[1773176410747,1.47109664,86.239,86.201,1.155734]
[1773176410950,1.47109664,86.229,86.192,1.155734]
[1773176411158,1.47109664,86.229,86.2,4.12965057]
[1773176411732,1.47109664,86.229,86.211,1.15562459]
[1773176411934,11.59716101,86.228,86.206,1.15551644]
[1773176412155,1.47109664,86.227,86.206,1.15551644]
[1773176413051,1.47109664,86.225,86.206,1.15551644]
[1773176413658,1.47109664,86.225,86.21,4.12965057]
[1773176413874,11.59568176,86.239,86.211,1.56483985]
[1773176415986,1.47109664,86.236,86.211,1.56483985]
[1773176417590,1.47109664,86.234,86.211,1.56483985]
[1773176419477,11.5957594,86.239,86.221,1.52807219]
[1773176420075,1.58102673,86.238,86.221,1.52807219]
[1773176420981,1.58102673,86.238,86.211,1.52807219]
[1773176421484,1.58102673,86.238,86.211,0.74724745]
[1773176425488,1.58102673,86.236,86.211,0.74724745]
[1773176427795,1.58102673,86.234,86.21,4.12965057]
[1773176428175,1.58102673,86.234,86.21,5.65772276]
[1773176428375,1.58102673,86.234,86.211,1.52807219]
[1773176430381,1.58102673,86.232,86.21,4.12965057]
[1773176431099,1.58102673,86.232,86.211,1.52807219]
[1773176431596,1.58102673,86.232,86.212,1.52807219]
[1773176432392,1.58102673,86.232,86.213,11.59917877]
[1773176432604,1.58102673,86.236,86.221,1.52807219]
[1773176433995,11.59600893,86.237,86.221,1.52807219]
[1773176433996,9.5100468,86.237,86.221,1.52807219]
[1773176434296,11.59541659,86.241,86.221,1.52807219]
[1773176434490,1.58102673,86.24,86.221,1.52807219]
[1773176434688,11.59568176,86.239,86.221,1.52807219]
[1773176435893,11.59568176,86.239,86.222,1.52807219]
[1773176442001,1.58102673,86.249,86.224,1.52807219]
[1773176442207,1.58102673,86.248,86.224,1.52807219]
[1773176443886,11.59388461,86.253,86.233,1.52807219]
[1773176444101,1.58102673,86.255,86.233,1.52807219]
[1773176444306,4.13228561,86.27,86.241,1.52807219]
[1773176444307,1.58102673,86.268,86.241,1.52807219]
[1773176444887,1.58102673,86.268,86.233,1.52807219]
[1773176446203,1.61908084,86.266,86.235,1.47536789]
[1773176447901,40.57171339,86.267,86.209,1.47536789]
[1773176447902,1.61908084,86.239,86.209,1.47536789]
[1773176448101,11.59581622,86.238,86.212,11.59931332]
[1773176448293,13.21489706,86.238,86.213,1.47536789]
[1773176448494,13.21489706,86.238,86.22,5.6076535]
[1773176448792,1.61908084,86.237,86.22,5.6076535]
[1773176449798,13.1192413,86.236,86.22,5.6076535]
[1773176449998,1.52315614,86.235,86.22,1.47536789]
[1773176451912,11.5963541,86.234,86.22,1.47536789]
[1773176452113,13.11951024,86.234,86.22,1.47536789]
[1773176452698,1.52315614,86.233,86.22,1.47536789]
[1773176453308,13.1197792,86.232,86.213,1.55993801]
[1773176453522,1.52315614,86.231,86.213,1.55993801]
[1773176454213,11.59662306,86.232,86.213,1.55993801]
[1773176454417,11.59662306,86.232,86.215,1.55993801]
[1773176454617,1.52315614,86.236,86.22,4.13228561]
[1773176455722,1.52315614,86.236,86.219,1.55993801]
[1773176455905,1.52315614,86.234,86.219,1.55993801]
[1773176458621,11.59648858,86.233,86.219,1.55993801]
[1773176461702,13.11964472,86.233,86.219,1.55993801]
[1773176464425,13.11964472,86.233,86.201,29.00197457]
[1773176464426,11.59606199,86.237,86.221,1.55993801]
[1773176465326,11.59460618,86.247,86.231,1.55993801]
[1773176466524,1.52315614,86.264,86.241,1.55993801]
[1773176466732,1.52315614,86.281,86.251,1.55993801]
[1773176466910,1.52315614,86.281,86.261,1.55993801]
[1773176467111,1.52315614,86.281,86.251,1.55993801]
[1773176467310,1.52315614,86.279,86.251,1.55993801]
[1773176468610,1.52315614,86.277,86.253,1.55993801]
[1773176470140,1.52315614,86.277,86.261,1.55993801]
[1773176471319,13.11386502,86.276,86.261,1.55993801]
[1773176471715,11.59070888,86.276,86.261,1.55993801]
[1773176471916,1.52315614,86.275,86.261,1.55993801]
[1773176473031,1.52315614,86.275,86.26,4.13228561]
[1773176473524,11.59097758,86.274,86.256,1.55993801]
[1773176473723,1.52315614,86.273,86.251,1.55993801]
[1773176474930,1.52315614,86.271,86.251,1.55993801]
[1773176478734,1.52315614,86.269,86.23,4.13228561]
[1773176478932,1.52315614,86.269,86.231,1.55993801]
[1773176479324,1.60705199,86.259,86.231,1.55993801]
[1773176480043,1.60705199,86.259,86.221,1.52506076]
[1773176480333,1.60705199,86.249,86.221,1.52506076]
[1773176481239,1.60705199,86.247,86.221,1.52506076]
[1773176482739,1.60705199,86.247,86.22,5.65734637]
[1773176484123,1.60705199,86.245,86.222,1.52506076]
[1773176485643,1.60705199,86.243,86.224,1.52506076]
[1773176485845,11.5950095,86.244,86.224,1.52506076]
[1773176486429,11.59445025,86.249,86.231,1.52506076]
[1773176487545,1.60705199,86.252,86.231,1.52506076]
[1773176488037,1.60705199,86.252,86.233,1.52506076]
[1773176490247,1.60705199,86.25,86.233,1.52506076]
[1773176491329,1.60705199,86.25,86.227,11.59720725]
[1773176491533,1.60705199,86.25,86.222,1.52506076]
[1773176492043,1.60705199,86.249,86.222,1.52506076]
[1773176492246,1.60705199,86.262,86.24,4.13228561]
[1773176492448,1.60705199,86.262,86.24,1.52506076]
[1773176492645,1.60705199,86.259,86.231,1.52506076]
[1773176494843,40.5721837,86.266,86.231,1.52506076]
[1773176494844,1.60705199,86.257,86.231,1.52506076]
[1773176495951,1.60705199,86.257,86.233,1.52506076]
[1773176496856,1.60705199,86.255,86.233,1.52506076]
[1773176497955,1.60705199,86.253,86.233,1.52506076]
[1773176500254,1.60705199,86.249,86.22,4.13228561]
[1773176501441,1.60705199,86.247,86.22,4.13228561]
[1773176501637,1.60705199,86.247,86.22,4.13238598]
[1773176503970,1.60705199,86.245,86.219,13.12332356]
[1773176504143,1.60705199,86.245,86.22,1.52506076]
[1773176505861,11.5950095,86.244,86.22,4.13238598]
[1773176506060,1.60705199,86.243,86.221,1.52506076]
[1773176507465,1.47938398,86.241,86.216,1.48156391]
[1773176509347,1.49531933,86.239,86.192,11.60200482]
[1773176509547,5.29200794,86.24,86.2,4.13238598]
[1773176509548,1.49531933,86.237,86.2,4.13238598]
[1773176510072,1.49531933,86.237,86.201,11.60079349]
[1773176510373,1.49531933,86.237,86.201,13.09470661]
[1773176510558,1.49531933,86.237,86.202,1.49391312]
[1773176512670,1.49531933,86.235,86.202,1.49391312]
[1773176513268,1.49531933,86.235,86.204,1.49391312]
[1773176513460,1.49531933,86.235,86.21,4.13238598]
[1773176513651,1.49531933,86.235,86.207,1.49391312]
[1773176514364,1.49531933,86.235,86.211,1.49391312]
[1773176514752,1.49531933,86.233,86.211,1.49391312]
[1773176517475,1.15962196,86.25,86.221,1.49391312]
[1773176517679,11.5935308,86.255,86.231,1.49391312]
[1773176517974,1.49531933,86.254,86.231,1.49391312]
[1773176518463,1.49531933,86.254,86.221,1.49391312]
[1773176519068,1.49531933,86.249,86.221,1.49391312]
[1773176519479,1.49531933,86.247,86.221,1.49391312]
[1773176519777,1.49531933,86.247,86.222,1.49391312]
[1773176521468,11.59474062,86.246,86.222,1.49391312]
[1773176521676,11.59474062,86.246,86.224,1.49391312]
[1773176521874,13.09005995,86.246,86.224,1.49391312]
[1773176522691,1.49531933,86.245,86.224,1.49391312]
[1773176524786,1.49531933,86.243,86.224,1.49391312]
[1773176525295,1.49531933,86.239,86.202,1.49391312]
[1773176525493,1.49531933,86.219,86.19,55.16652898]
[1773176525691,1.49531933,86.219,86.191,30.0]